{"text_format":"2","workbook":"xlsx","n_sheets":6,"sheets":["Template & Instructions","Example CSV-Ready to File","Royalty Rates","Product Codes","Transaction Codes","FAQ"],"not_rendered":{"charts":0,"images":0,"macros":0,"external_links":0,"defined_names":2,"comments":0,"pivot_tables":0},"unopened":[],"bounds":{"document_bytes":16777216,"sheet_cells":100000,"run_cost":"one","rows_first":2000,"rows_last":500,"rows_between":2000,"halvings":0,"cell_chars":16384,"cell_head_chars":4096},"cells_cut":0,"cells_raw":0,"read":"whole","date_system":"1900"}

{"sheet":"Template & Instructions","index":0,"n_rows":55,"n_cols":27,"rows_kept":55,"cut":false,"hidden":false,"merged":[[23,19,24,22],[23,23,24,26]]}
["Step 1.","Creating the Excel / CSV worksheet"]
[]
["RECORD TYPE 5 - OGR1 Header. First cell must be 5 to denote record type.",{"$nulls":13}," "]
["Field Name","RET SUB DTE","OGRID","XMIT CTL NBR","SENDER ID","FINAL RET IND","REMIT RET IND","ACCEL ROY SALES MMYY","ACCEL ROY PMT","TOT ROY RPT","TOT INT RPT","TOT ASSMNT PD AMT","TOT ROY & ASSMNT PD","REG CR AMT","LSE CR AMT","ACCEL CLAIM SALES MMYY","ACCEL CLAIM PMT","TOT CR TAKEN","TOT ADV PMT","TOT REMIT AMT","PMT TYP","IO CHK","RET POSTM DTE","REPORTERS REF"]
["Field Description","Return submit date","Oil and Gas Reporting ID Number ","Unique Sequential Number used to identify the file transmission per OGRID and transaction type ","Login ID for Online Filing","Final Return or Not","Remit Return Indicator","Accelerated pmt fields no longer used","Accelerated pmt fields no longer used","Total Royalty reported","Interest reported field no longer used","Total amount paid as Assessments","Total Royalty & Assessments Paid Amount","Total Regular Credits Applied","Total Lease Credit Amount Applied","Accelerated pmt fields no longer used","Accelerated pmt fields no longer used","Total Credit taken","Total Amount of Advance Payment paid or taken as credit ","Total Remittance Amount","Type of Payment","Check from In or Out of NM","Postmark Return","Reporters Use"]
["Type","Numeric","Numeric","Numeric","Alpha","Alpha","Alpha","Numeric","Numeric","Numeric","Numeric","Numeric","Numeric","Numeric","Numeric","Numeric","Numeric","Numeric","Numeric","Numeric","Numeric","Alpha","Numeric","Alpha"]
["Max Length",8,6,9,15,1,1,4,7,7,7,7,7,7,7,4,7,7,7,7.2,2,1,8,20]
["Validation","Format (YYYYMMDD) cannot be future date.","Must be the same OGRID selected at login to online filing.","Must be greater than the last XMIT CTL NBR used in sender's previous file , if the return was accepted. Recommend using the date in YYYYMMDD format. If submitting multiple returns, add a 1 at the end for the first file, 2 for the second, etc.","Validate that SENDER ID on CSV file matches the SENDER ID transmitting the return.","Y, N or Blank","Y, N or Blank","FIELD NOT USED \n(Enter 0)","FIELD NOT USED \n(Enter 0)","Sum of column P of detail lines. Can be negative or positive.","FIELD NOT USED \n(Enter 0)","Sum of all assessments added to return. Cannot be negative - must be 0 or greater.","Sum of columns J & L of this row. Can be negative or positive. ","Sum of all remittance credits added to return. Cannot be negative - must be 0 or greater.","Sum of all lease credits added to return. Cannot be negative - must be 0 or greater.","FIELD NOT USED \n(Enter 0)","FIELD NOT USED \n(Enter 0)","Sum of columns N & O of this row. Cannot be negative - must be 0 or greater.","Used only once per year after advance notices are sent. Can be negative or positive.","Column M minus column R, plus column S. Can be negative or positive.","Accepted values are:\n01 (Fedwire)\n02 (ACH Credit)\n03 (ACH Debit)\n04 (Check)","Values are “I” or “O”","Overlaid with system timestamp. Enter 0.","Optional field. Can be blank."]
[5,20240925,123456,202409251,"SenderID","N","N",0,0,176598,0,4150,180748,3000,0,0,0,3000,0,177748,1,"O",0,"NM-ROY"]
[null,null,null," "]
["RECORD TYPE 4 - Notices",null,"    [ This Record is used When a Payment is Made to an Assessment or a Credit Notice is Applied ]"]
["Field Name","OGRID","INVOICE NUM","AMT APPLIED/PAID"]
["Field Description","Oil and Gas Reporting Id #","Royalty Assessment or Credit Notice #","Amount Paid for the reported assessment or applied for the reported credit."]
["Type","Numeric","Alpha","Numeric"]
["Max Field Length",6,8,9]
["Validation","Must be same as OGRID listed on header row\n(OGR-1).","Must be 8 digits with beginning with “A”  for assessments and “C” for credits.  This # can be found on the notice.","Cannot be negative – must be 0 or greater."]
[4,123456,"A0012355",150]
[4,123456,"A0012456",4000]
[4,123456,"C0023178",3000]
[]
["RECORD TYPE 6  - OGR2 Detail"]
["Field Name","OGRID","SALE MTH/YR NUM","PUN","LEASE","PRD CDE","TRN CDE","ARMS LEN IND","VOL MCF BBLS","NGLS GAL","BTU NUM","GROSS PROCEEDS","TRANSP DED","MKT DED","GAS PROCESSING DED","TOT ROY PAID","REPORTERS USE","REPORTERS REF"]
["Field Description","Oil and Gas Reporting Identifier","Sales month/year","Number used to report on a distinct property, pool, OGRID","Lease Identifier","Product type","Transaction code for detail line entry","Arms Length Indicator","Volume of  Production reported as Oil=BBLS; Gas=MCF","Volume of NGLS in Gallons","BTU/Value","Report Actual (whole) Dollars received for sale of Product before Deductions","Allowable Transportation Deduction","Allowable Deduction for Market Preparation","Gas Processing Deduction","Total Royalty Paid Amount","Reporters Use","Reporters Reference"]
["Type","Numeric","Numeric","Numeric","Alpha Numeric","Numeric","Numeric","Alpha","Numeric","Numeric","Numeric","Numeric","Numeric","Numeric","Numeric","Numeric","Alpha","Alpha",null,"PRE-SUBMISSION CALCULATION TOOLS - THESE COLUMNS MUST BE DELETED/CLEARED BEFORE RETURN IS SUBMITTED",null,null,null,"GAS DATA VERIFICATION TOOLS - THESE COLUMNS MUST BE DELETED/CLEARED BEFORE RETURN IS SUBMITTED"]
["Max Length",6,4,7,6,2,2,1,9,7,5,7,7,9,9,9,20,20]
["Validation","Must be same as OGRID listed on header row\n(OGR-1).","MMYY","Must be 7 digits. See Royalty PUN Inquiry. If no PUN found, please enter the last 7 digits of the property's API number","If lease is unknown, please see Royalty PUN Inquiry link.","One or two digit code. See Product Codes tab.","Two digit code. See Transaction Codes tab.","“Y” if arms-length transaction or “N” if not","Can be negative, 0 or greater.","Can be negative, 0 or greater.","Can be negative, 0 or greater.","Can be negative, 0 or greater.","Can be negative, 0 or greater.","Can be negative, 0 or greater.","Can be negative, 0 or greater.","Gross proceeds less deductions, multiplied by royalty rate % - see table. Can be negative, 0 or greater. (Negative royalties allowed only on backout/reversal lines)","Can be blank. Some remitters use the property name or other reference here.","Can be blank. Some remitters use the property name or other reference here.","Ready to submit?","RMD Royalty Calculation ","Difference from reported amount","Is reported value acceptable? \n\nIf within $1 of reported amount, ok to submit, if not, must be corrected.","Do Deductions Exceed Gross Proceeds? \n\nIf no, ok to submit, if yes, must be corrected.","Missing BTUs\n\nAll prod code 3s and 11s require BTUs to be reported.","Missing NGLs\n\nAll prod code 3s and 11s require BTUs to be reported.","Missing Volume\n\nAll lines with reported values must include volumes","No Deducts on Prod Code 4\n\nProd Code 4 is unprocessed gas and should not include deducts"]
[6,123456,125,1189624,"E05229",1,51,"Y",670,0,0,52768,487,0,0,6535,0,0,{"$f":"IF(AND(EXACT(V27:AA27,\"Ok to Submit\")),\"Yes\",\"No\")","v":"Yes"},{"$f":"ROUND(IF(G27=65,((L27-M27-N27-O27)*0.05),IF(G27=44,(L27-M27-N27-O27),IF(OR(LEFT(E27,2)=\"VC\",LEFT(E27,2)=\"SR\"),((L27-M27-N27-O27)*0.2),IF(LEFT(E27,2)=\"SG\",((L27-M27-N27-O27)*0.25),IF(LEFT(E27,2)=\"VB\",((L27-M27-N27-O27)*0.1875),IF(LEFT(E27,2)=\"V0\",((L27-M27-N27-O27)*0.16667),IF(LEFT(E27,2)=\"VZ\",((L27-M27-N27-O27)*0.16667),(L27-M27-N27-O27)*0.125))))))),0)","v":6535},{"$f":"T27-P27","v":0},{"$f":"IF(AND(U27>-2,U27<2),\"Ok to Submit\",\"Calculation Error\")","v":"Ok to Submit"},{"$f":"IF(L27<(M27+N27+O27),\"Deducts Exceed Gross Proceeds\",\"Ok to Submit\")","v":"Ok to Submit"},{"$f":"IF(AND(K27=0,F27=11),\"Add BTUs\",IF(AND(K27=0,F27=3),\"Add BTUs\",\"Ok to Submit\"))","v":"Ok to Submit"},{"$f":"IF(AND(J27=0,F27=11),\"Add NGLs\",IF(AND(J27=0,F27=7),\"Add NGLs\",\"Ok to Submit\"))","v":"Ok to Submit"},{"$f":"IF(AND(SUM(J27:P27)>0,I27=0),\"Add Vol\",\"Ok to Submit\")","v":"Ok to Submit"},{"$f":"IF(AND(F27=4,(M27+N27+O27)>0),\"Use Prod Code 11\",\"Ok to Submit\")","v":"Ok to Submit"}]
[6,123456,125,1189624,"E05229",4,51,"Y",160,0,1361,90,0,0,10,11,0,0,{"$f":"IF(AND(EXACT(V28:AA28,\"Ok to Submit\")),\"Yes\",\"No\")","v":"No"},{"$f":"ROUND(IF(G28=65,((L28-M28-N28-O28)*0.05),IF(G28=44,(L28-M28-N28-O28),IF(OR(LEFT(E28,2)=\"VC\",LEFT(E28,2)=\"SR\"),((L28-M28-N28-O28)*0.2),IF(LEFT(E28,2)=\"SG\",((L28-M28-N28-O28)*0.25),IF(LEFT(E28,2)=\"VB\",((L28-M28-N28-O28)*0.1875),IF(LEFT(E28,2)=\"V0\",((L28-M28-N28-O28)*0.16667),IF(LEFT(E28,2)=\"VZ\",((L28-M28-N28-O28)*0.16667),(L28-M28-N28-O28)*0.125))))))),0)","v":10},-1,{"$f":"IF(AND(U28>-2,U28<2),\"Ok to Submit\",\"Calculation Error\")","v":"Ok to Submit"},{"$f":"IF(L28<(M28+N28+O28),\"Deducts Exceed Gross Proceeds\",\"Ok to Submit\")","v":"Ok to Submit"},{"$f":"IF(AND(K28=0,F28=11),\"Add BTUs\",IF(AND(K28=0,F28=3),\"Add BTUs\",\"Ok to Submit\"))","v":"Ok to Submit"},{"$f":"IF(AND(J28=0,F28=11),\"Add NGLs\",IF(AND(J28=0,F28=7),\"Add NGLs\",\"Ok to Submit\"))","v":"Ok to Submit"},{"$f":"IF(AND(SUM(J28:P28)>0,I28=0),\"Add Vol\",\"Ok to Submit\")","v":"Ok to Submit"},{"$f":"IF(AND(F28=4,(M28+N28+O28)>0),\"Use Prod Code 11\",\"Ok to Submit\")","v":"Use Prod Code 11"}]
[6,123456,125,1189624,"E05229",11,51,"Y",3289,11235,1156,8952,231,0,2825,738,0,0,{"$f":"IF(AND(EXACT(V29:AA29,\"Ok to Submit\")),\"Yes\",\"No\")","v":"Yes"},737,-1,"Ok to Submit","Ok to Submit","Ok to Submit","Ok to Submit","Ok to Submit","Ok to Submit"]
[6,123456,125,1350149,"VB0054",1,51,"Y",931,0,0,72792,970,0,0,13467,0,0,{"$f":"IF(AND(EXACT(V30:AA30,\"Ok to Submit\")),\"Yes\",\"No\")","v":"Yes"},13467,0,"Ok to Submit","Ok to Submit","Ok to Submit","Ok to Submit","Ok to Submit","Ok to Submit"]
[6,123456,125,1350149,"VB0054",3,51,"Y",799,0,0,1295,464,0,914,0,0,0,{"$f":"IF(AND(EXACT(V31:AA31,\"Ok to Submit\")),\"Yes\",\"No\")","v":"No"},-16,-16,"Calculation Error",{"$f":"IF(L31<(M31+N31+O31),\"Deducts Exceed Gross Proceeds\",\"Ok to Submit\")","v":"Deducts Exceed Gross Proceeds"},"Add BTUs","Ok to Submit","Ok to Submit","Ok to Submit"]
[6,123456,125,1350149,"VB0054",4,51,"Y",59,0,1316,122,0,0,0,23,0,0,{"$f":"IF(AND(EXACT(V32:AA32,\"Ok to Submit\")),\"Yes\",\"No\")","v":"Yes"},23,0,"Ok to Submit","Ok to Submit","Ok to Submit","Ok to Submit","Ok to Submit","Ok to Submit"]
[6,123456,125,1350149,"VB0054",7,51,"Y",279,6252,0,4032,547,0,384,581,0,0,{"$f":"IF(AND(EXACT(V33:AA33,\"Ok to Submit\")),\"Yes\",\"No\")","v":"Yes"},581,0,"Ok to Submit","Ok to Submit","Ok to Submit","Ok to Submit","Ok to Submit","Ok to Submit"]
[6,123456,125,1371548,"V04902",1,51,"Y",1980,0,0,154718,2061,0,0,25494,0,0,{"$f":"IF(AND(EXACT(V34:AA34,\"Ok to Submit\")),\"Yes\",\"No\")","v":"No"},25443,-51,"Calculation Error","Ok to Submit","Ok to Submit","Ok to Submit","Ok to Submit","Ok to Submit"]
[6,123456,125,1371548,"V04902",3,51,"Y",10369,0,1032,16778,6033,0,8717,339,0,0,{"$f":"IF(AND(EXACT(V35:AA35,\"Ok to Submit\")),\"Yes\",\"No\")","v":"Yes"},338,-1,"Ok to Submit","Ok to Submit","Ok to Submit","Ok to Submit","Ok to Submit","Ok to Submit"]
[6,123456,125,1371548,"V04902",4,51,"Y",795,0,1252,1561,0,0,0,261,0,0,{"$f":"IF(AND(EXACT(V36:AA36,\"Ok to Submit\")),\"Yes\",\"No\")","v":"Yes"},260,-1,"Ok to Submit","Ok to Submit","Ok to Submit","Ok to Submit","Ok to Submit","Ok to Submit"]
[6,123456,125,1371548,"V04902",7,51,"Y",0,78177,0,50002,6856,0,4847,6396,0,0,{"$f":"IF(AND(EXACT(V37:AA37,\"Ok to Submit\")),\"Yes\",\"No\")","v":"No"},6383,-13,"Calculation Error","Ok to Submit","Ok to Submit","Ok to Submit","Add Vol","Ok to Submit"]
[6,123456,125,1407896,"VC0955",1,51,"Y",4572,0,0,369194,6147,0,0,72609,0,0,{"$f":"IF(AND(EXACT(V38:AA38,\"Ok to Submit\")),\"Yes\",\"No\")","v":"Yes"},72609,{"$f":"T38-P38","v":0},"Ok to Submit","Ok to Submit","Ok to Submit","Ok to Submit","Ok to Submit","Ok to Submit"]
[6,123456,125,1407896,"VC0955",3,51,"Y",5765,0,995,11862,3970,0,7702,38,0,0,{"$f":"IF(AND(EXACT(V39:AA39,\"Ok to Submit\")),\"Yes\",\"No\")","v":"Yes"},38,0,"Ok to Submit","Ok to Submit","Ok to Submit","Ok to Submit","Ok to Submit","Ok to Submit"]
[6,123456,125,1407896,"VC0955",4,51,"Y",633,0,1379,1837,0,0,0,367,0,0,{"$f":"IF(AND(EXACT(V40:AA40,\"Ok to Submit\")),\"Yes\",\"No\")","v":"Yes"},367,0,"Ok to Submit","Ok to Submit","Ok to Submit","Ok to Submit","Ok to Submit","Ok to Submit"]
[6,123456,125,1407896,"VC0955",7,51,"Y",2404,0,0,34142,0,0,0,6828,0,0,{"$f":"IF(AND(EXACT(V41:AA41,\"Ok to Submit\")),\"Yes\",\"No\")","v":"No"},6828,0,"Ok to Submit","Ok to Submit","Ok to Submit","Add NGLs","Ok to Submit","Ok to Submit"]
[6,123456,125,7654321,"SR4321",1,51,"Y",4572,0,0,369194,6147,0,0,72609,0,0,{"$f":"IF(AND(EXACT(V42:AA42,\"Ok to Submit\")),\"Yes\",\"No\")","v":"Yes"},72609,{"$f":"T42-P42","v":0},"Ok to Submit","Ok to Submit","Ok to Submit","Ok to Submit","Ok to Submit","Ok to Submit"]
[6,123456,125,7654321,"SR4321",4,51,"Y",633,0,1379,1837,0,0,0,367,0,0,{"$f":"IF(AND(EXACT(V43:AA43,\"Ok to Submit\")),\"Yes\",\"No\")","v":"Yes"},367,{"$f":"T43-P43","v":0},"Ok to Submit","Ok to Submit","Ok to Submit","Ok to Submit","Ok to Submit","Ok to Submit"]
[6,123456,125,7654321,"SR4321",11,51,"Y",8169,69833,995,46004,3970,0,7702,6866,0,0,{"$f":"IF(AND(EXACT(V44:AA44,\"Ok to Submit\")),\"Yes\",\"No\")","v":"Yes"},6866,{"$f":"T44-P44","v":0},"Ok to Submit","Ok to Submit","Ok to Submit","Ok to Submit","Ok to Submit","Ok to Submit"]
[6,123456,125,1234567,"SG1234",1,51,"Y",4572,0,0,369194,6147,0,0,90762,0,0,{"$f":"IF(AND(EXACT(V45:AA45,\"Ok to Submit\")),\"Yes\",\"No\")","v":"Yes"},90762,{"$f":"T45-P45","v":0},"Ok to Submit","Ok to Submit","Ok to Submit","Ok to Submit","Ok to Submit","Ok to Submit"]
[6,123456,125,1234567,"SG1234",4,51,"Y",633,0,1379,1837,0,0,0,459,0,0,{"$f":"IF(AND(EXACT(V46:AA46,\"Ok to Submit\")),\"Yes\",\"No\")","v":"Yes"},459,0,"Ok to Submit","Ok to Submit","Ok to Submit","Ok to Submit","Ok to Submit","Ok to Submit"]
[6,123456,125,1234567,"SG1234",11,51,"Y",8169,69833,995,46004,3970,0,7702,8583,0,0,{"$f":"IF(AND(EXACT(V47:AA47,\"Ok to Submit\")),\"Yes\",\"No\")","v":"Yes"},8583,0,"Ok to Submit","Ok to Submit","Ok to Submit","Ok to Submit","Ok to Submit","Ok to Submit"]
[6,123456,125,1350149,"L06293",1,65,"Y",2785,0,0,217652,2899,0,0,26844,0,0,{"$f":"IF(AND(EXACT(V48:AA48,\"Ok to Submit\")),\"Yes\",\"No\")","v":"No"},{"$f":"ROUND(IF(G48=65,((L48-M48-N48-O48)*0.05),IF(G48=44,(L48-M48-N48-O48),IF(OR(LEFT(E48,2)=\"VC\",LEFT(E48,2)=\"SR\"),((L48-M48-N48-O48)*0.2),IF(LEFT(E48,2)=\"SG\",((L48-M48-N48-O48)*0.25),IF(LEFT(E48,2)=\"VB\",((L48-M48-N48-O48)*0.1875),IF(LEFT(E48,2)=\"V0\",((L48-M48-N48-O48)*0.16667),IF(LEFT(E48,2)=\"VZ\",((L48-M48-N48-O48)*0.16667),(L48-M48-N48-O48)*0.125))))))),0)","v":10738},{"$f":"T48-P48","v":-16106},"Calculation Error","Ok to Submit","Ok to Submit","Ok to Submit","Ok to Submit","Ok to Submit"]
[6,123456,125,1350149,"L06293",11,44,"Y",3223,18693,1034,15927,3024,0,3283,9620,0,0,{"$f":"IF(AND(EXACT(V49:AA49,\"Ok to Submit\")),\"Yes\",\"No\")","v":"Yes"},{"$f":"ROUND(IF(G49=65,((L49-M49-N49-O49)*0.05),IF(G49=44,(L49-M49-N49-O49),IF(OR(LEFT(E49,2)=\"VC\",LEFT(E49,2)=\"SR\"),((L49-M49-N49-O49)*0.2),IF(LEFT(E49,2)=\"SG\",((L49-M49-N49-O49)*0.25),IF(LEFT(E49,2)=\"VB\",((L49-M49-N49-O49)*0.1875),IF(LEFT(E49,2)=\"V0\",((L49-M49-N49-O49)*0.16667),IF(LEFT(E49,2)=\"VZ\",((L49-M49-N49-O49)*0.16667),(L49-M49-N49-O49)*0.125))))))),0)","v":9620},{"$f":"T49-P49","v":0},"Ok to Submit","Ok to Submit","Ok to Submit","Ok to Submit","Ok to Submit","Ok to Submit"]
[]
["Step 2.","Delete all rows that do not begin with a Record Type 5, 4, or 6. All that should remain are the blue highlighted cells. See Example - CSV Ready to File. Remove highlighting, save as CSV and submit."]
[]
["RESOURCES"]
["Royalty Filers' Kit"]
["Royalty PUN Inquiry Website"]

{"sheet":"Example CSV-Ready to File","index":1,"n_rows":27,"n_cols":24,"rows_kept":27,"cut":false,"hidden":false,"merged":[]}
[5,20240925,123456,202409251,"SenderID","N","N",0,0,349797,0,4150,353947,3000,0,0,0,3000,0,350947,1,"O",0,"NM-ROY"]
[4,123456,"A0012355",150]
[4,123456,"A0012456",4000]
[4,123456,"C0023178",3000]
[6,123456,125,1189624,"E05229",1,51,"Y",670,0,0,52768,487,0,0,6535,0,0]
[6,123456,125,1189624,"E05229",4,51,"Y",160,0,1361,90,0,0,0,11,0,0]
[6,123456,125,1189624,"E05229",11,51,"Y",3289,11235,1156,8952,231,0,2825,738,0,0]
[6,123456,125,1350149,"VB0054",1,51,"Y",931,0,0,72792,970,0,0,13467,0,0]
[6,123456,125,1350149,"VB0054",3,51,"Y",799,0,1034,1295,464,0,914,0,0,0]
[6,123456,125,1350149,"VB0054",4,51,"Y",59,0,1316,122,0,0,0,23,0,0]
[6,123456,125,1350149,"VB0054",7,51,"Y",279,6252,0,4032,547,0,384,581,0,0]
[6,123456,125,1371548,"V04902",1,51,"Y",1980,0,0,154718,2061,0,0,25494,0,0]
[6,123456,125,1371548,"V04902",3,51,"Y",10369,0,1032,16778,6033,0,8717,339,0,0]
[6,123456,125,1371548,"V04902",4,51,"Y",795,0,1252,1561,0,0,0,261,0,0]
[6,123456,125,1371548,"V04902",7,51,"Y",1213,78177,0,50002,6856,0,4847,6396,0,0]
[6,123456,125,1407896,"VC0955",1,51,"Y",4572,0,0,369194,6147,0,0,72609,0,0]
[6,123456,125,1407896,"VC0955",3,51,"Y",5765,0,995,11862,3970,0,7702,38,0,0]
[6,123456,125,1407896,"VC0955",4,51,"Y",633,0,1379,1837,0,0,0,367,0,0]
[6,123456,125,1407896,"VC0955",7,51,"Y",2404,69833,0,34142,0,0,0,6828,0,0]
[6,123456,125,7654321,"SR4321",1,51,"Y",4572,0,0,369194,6147,0,0,72609,0,0]
[6,123456,125,7654321,"SR4321",4,51,"Y",633,0,1379,1837,0,0,0,367,0,0]
[6,123456,125,7654321,"SR4321",11,51,"Y",8169,69833,995,46004,3970,0,7702,6866,0,0]
[6,123456,125,1234567,"SG1234",1,51,"Y",4572,0,0,369194,6147,0,0,90762,0,0]
[6,123456,125,1234567,"SG1234",4,51,"Y",633,0,1379,1837,0,0,0,459,0,0]
[6,123456,125,1234567,"SG1234",11,51,"Y",8169,69833,995,46004,3970,0,7702,8583,0,0]
[6,123456,125,1350149,"L06293",1,65,"Y",2785,0,0,217652,2899,0,0,26844,0,0]
[6,123456,125,1350149,"L06293",11,44,"Y",3223,18693,1034,15927,3024,0,3283,9620,0,0]

{"sheet":"Royalty Rates","index":2,"n_rows":32,"n_cols":3,"rows_kept":32,"cut":false,"hidden":false,"merged":[[0,0,0,1],[1,0,1,1],[2,0,2,1],[31,0,32,1],[29,0,30,1]]}
["NM STATE LAND OFFICE"]
["ROYALTY MANAGEMENT DIVISION"]
["ROYALTY RATES"]
[]
["LEASE PREFIX *","ROYALTY RATE"]
["X0",0.125]
["00",0.125]
["A0",0.125]
["BA",0.125]
["BH",0.125]
["B1",0.125]
["B0",0.125]
["C0",0.125]
["E0",0.125]
["E1",0.125]
["OG",0.125]
["K0",0.125]
["L0",0.125]
["LG",0.125]
["LH",0.125]
["LZ",0.125]
["SG",0.25]
["SR",0.2]
["V0",0.16667000000000001,"**"]
["VZ",0.16667000000000001,"**"]
["VA",0.125]
["VB",0.1875]
["VC",0.2]
[]
["* Lease Prefix character is Zero, not the letter \"O\""]
[]
["** Use exactly 16.667% for royalty calculation to match system calculation"]

{"sheet":"Product Codes","index":3,"n_rows":17,"n_cols":2,"rows_kept":17,"cut":false,"hidden":false,"merged":[[0,0,0,1],[1,0,1,1],[2,0,2,1],[16,0,16,1]]}
["NM STATE LAND OFFICE"]
["ROYALTY MANAGEMENT DIVISION"]
["PRODUCT CODES"]
[" "," "]
["PRODUCT #","PRODUCT NAME"]
[1,"Oil"]
[2,"Oil Condensate"]
[3,"Gas, processed (residue) gas"]
[4,"Gas, wet"]
[5,"Oil, other liquid hydrocarbons"]
[7,"Gas Plants Products "]
[11,"Gas, Wellhead natural gas"]
[14,"Oil, lost * "]
[16,"Gas lost, flared or vented"]
[17,"Carbon Dioxide gas (CO2)"]
[]
["* Royalties are due on unrecovered spilled oil in excess of 10 BBLS"]

{"sheet":"Transaction Codes","index":4,"n_rows":17,"n_cols":3,"rows_kept":17,"cut":false,"hidden":false,"merged":[[0,0,0,2],[1,0,1,2],[2,0,2,2]]}
["NM STATE LAND OFFICE"]
["ROYALTY MANAGEMENT DIVISION"]
["TRANSACTION CODES"]
[" "," "]
["CODE #","TRANSACTION NAME","FREQUENCY OF USE"]
[43,"Royalty in kind payment","Rare"]
[44,"Royalty in trespass payment","Infrequent"]
[49,"Unit contraction/expansion","Infrequent"]
[51,"Regular payment","Frequent"]
[52,"Estimated payment","Rare"]
[53,"Correction of estimated payment","Rare"]
[54,"Appeal/Court action payment","Rare"]
[55,"Audit and Compliance exception payment","Frequent"]
[59,"Settlement payment","Rare"]
[60,"Transfer of royalty payment","Rare"]
[63,"Compensatory royalty payment","Rare"]
[65,"Stripper Well reduced royalty payment","Frequent"]

{"sheet":"FAQ","index":5,"n_rows":4,"n_cols":1,"rows_kept":4,"cut":false,"hidden":false,"merged":[[13,0,13,9],[2,0,2,9],[3,0,3,9],[4,0,4,9],[5,0,5,9],[6,0,6,9],[7,0,7,9],[8,0,8,9],[9,0,9,9],[10,0,10,9],[11,0,11,9],[12,0,12,9],[22,0,22,9],[23,0,23,9],[24,0,24,9],[25,0,25,9],[14,0,14,9],[15,0,15,9],[16,0,16,9],[17,0,17,9],[18,0,18,9],[19,0,19,9],[38,0,38,9],[0,0,0,9],[32,0,32,9],[33,0,33,9],[34,0,34,9],[35,0,35,9],[36,0,36,9],[37,0,37,9],[26,0,26,9],[27,0,27,9],[28,0,28,9],[29,0,29,9],[30,0,30,9],[31,0,31,9],[20,0,20,9],[21,0,21,9]]}
["Frequently Asked Questions"]
[]
["1. How do I report Negative Gross Proceeds or Negative Net Proceeds?"]
["If the gross price is negative, please report the volumes produced and 0 for your gross proceeds, deductions, and royalties paid.   If only the net price is negative (deductions exceed proceeds), please report the volumes and positive gross proceeds and include allowable deductions equal to the value of the gross proceeds, and 0 for your royalties paid."]